fUSD/lending_fUSD_20250519
["ID","MTS","AMOUNT","RATE_DAILY","PERIOD"]
[361652231,1747667144432,281.18888243,0.00011102,2]
[361652232,1747667150054,1000.0,0.0004265,30]
[361652233,1747667157737,184.0,0.0002739,120]
[361652234,1747667158898,200.0,0.000109,2]
[361652235,1747667159573,50000.0,0.0004265,30]
[361652236,1747667160236,1620.26,0.00011211,2]
[361652237,1747667163220,50000.0,0.0004265,31]
[361652238,1747667163287,840.0,0.00027397,120]
[361652239,1747667166509,50000.0,0.0004265,32]
[361652240,1747667170064,50000.0,0.0004265,33]
[361652241,1747667174615,50000.0,0.0004265,34]
[361652242,1747667184571,691.99581076,0.00027397,120]
[361652243,1747667186856,50000.0,0.0004265,30]
[361652244,1747667188807,1000.0,0.0004265,30]
[361652245,1747667192055,150.0,0.0002739,120]
[361652246,1747667212820,50000.0,0.0004265,31]
[361652247,1747667215522,150.0,0.00026,120]
[361652248,1747667217087,50000.0,0.0004265,32]
[361652249,1747667223299,36254.07354621,0.0004265,33]
[361652250,1747667242112,1539.9,0.00027397,120]
[361652251,1747667257407,-415.85,0.00011233,2]
[361652252,1747667257439,-250.0,0.0001129,2]
[361652253,1747667257469,-200.0,0.0001129,2]
[361652254,1747667257500,-164.92,0.00011347,2]
[361652255,1747667257532,-200.0,0.0001137,2]
[361652256,1747667257563,-500.06141511,0.00011394,2]
[361652257,1747667257595,-200.0,0.00011417,2]
[361652258,1747667257626,-1200.0,0.00011494,2]
[361652259,1747667257658,-300.0,0.00011494,2]
[361652260,1747667257688,-12329.3909727,0.00011495,2]
[361652261,1747667257720,-1382.06,0.00011504,2]
[361652262,1747667257752,-663.89,0.00011507,2]
[361652263,1747667257782,-500.0,0.00011532,2]
[361652264,1747667257821,-500.0,0.00011532,2]
[361652265,1747667257860,-500.0,0.00011532,2]
[361652266,1747667257897,-597.0725,0.00011532,2]
[361652267,1747667257927,-23900.0,0.00011533,2]
[361652268,1747667257957,-500.06141509,0.00011597,2]
[361652269,1747667257989,-150.0,0.00011598,2]
[361652270,1747667258022,-3694.55,0.00011599,2]
[361652271,1747667258054,-236.41,0.00011646,2]
[361652272,1747667258085,-1062.09657226,0.000118,2]
[361652273,1747667258139,-243.12,0.000118,2]
[361652274,1747667258175,-162.76,0.000118,2]
[361652275,1747667258209,-325.47,0.000118,2]
[361652276,1747667258243,-227.0,0.00011819,2]
[361652277,1747667258277,-325.49,0.000119,2]
[361652278,1747667258309,-453.11,0.000119,2]
[361652279,1747667258345,-150.3,0.000119,2]
[361652280,1747667258376,-150.3,0.000119,2]
[361652281,1747667258408,-301.64,0.000119,2]
[361652282,1747667258440,-325.52,0.000119,2]
[361652283,1747667258472,-2444.19499382,0.000119,2]
[361652284,1747667258503,-295.17231434,0.000119,2]
[361652285,1747667258533,-2000.0,0.00011904,2]
[361652286,1747667258564,-200.0,0.00011904,2]
[361652287,1747667258603,-500.0,0.00011973,2]
[361652288,1747667258639,-500.0,0.00011973,2]
[361652289,1747667258673,-500.0,0.00011973,2]
[361652290,1747667258707,-500.83964328,0.00011973,2]
[361652291,1747667258740,-500.0,0.00011973,2]
[361652292,1747667258773,-164.17293859,0.00011973,2]
[361652293,1747667258805,-500.0,0.00011973,2]
[361652294,1747667258837,-500.0,0.00011973,2]
[361652295,1747667258868,-500.0,0.00011973,2]
[361652296,1747667258900,-545.09082997,0.00011973,2]
[361652297,1747667258933,-640.84235729,0.00011973,2]
[361652298,1747667258964,-500.0,0.00011973,2]
[361652299,1747667258997,-500.0,0.00011973,2]
[361652300,1747667259030,-500.0,0.00011973,2]
[361652301,1747667259062,-4025.512,0.00011999,2]
[361652302,1747667259099,-170.875,0.00011999,2]
[361652303,1747667259132,-176.54951239,0.00011999,2]
[361652304,1747667259167,-18625.67753516,0.00012,2]
[361652305,1747667281498,257.5,0.00027397,120]
[361652307,1747667301589,919.0,0.00027397,120]
[361652308,1747667334205,1181.03,0.00027397,120]
[361652312,1747667431480,-200.0,0.00011305,2]
[361652313,1747667431490,-151.38872749,0.000118,2]
[361652314,1747667431524,-348.6726876,0.000118,2]
[361652315,1747667431533,-840.83,0.00011802,2]
[361652316,1747667431543,-22.99734132,0.000119,2]
[361652317,1747667431687,-227.00265868,0.000119,2]
[361652318,1747667431697,-200.0,0.000119,2]
[361652319,1747667431706,-865.2306,0.000119,2]
[361652320,1747667431716,-196.78154288,0.000119,2]
[361652321,1747667431726,-1200.0,0.00011972,2]
[361652322,1747667431737,-300.0,0.00011972,2]
[361652323,1747667431746,-500.0,0.00011973,2]
[361652324,1747667431756,-500.0,0.00011973,2]
[361652325,1747667431765,-500.0,0.00011973,2]
[361652326,1747667431775,-500.0,0.00011973,2]
[361652327,1747667431785,-500.0,0.00011973,2]
[361652328,1747667431795,-213.96738017,0.0001199,2]
[361652330,1747667431804,-150.0,0.00011998,2]
[361652331,1747667431813,-500.0,0.00011999,2]
[361652333,1747667431821,-500.0,0.00011999,2]
[361652334,1747667431830,-500.0,0.00011999,2]
[361652335,1747667431840,-500.0,0.00011999,2]
[361652336,1747667431849,-500.0,0.00011999,2]
[361652337,1747667431858,-500.0,0.00011999,2]
[361652338,1747667431867,-500.0,0.00011999,2]
[361652339,1747667431876,-500.0,0.00011999,2]
[361652340,1747667431885,-500.0,0.00011999,2]
[361652341,1747667431894,-199.88526655,0.00011999,2]
[361652342,1747667431902,-500.0,0.00011999,2]
[361652343,1747667431912,-500.0,0.00011999,2]
[361652344,1747667431921,-500.0,0.00011999,2]
[361652345,1747667431930,-500.0,0.00011999,2]
[361652346,1747667431939,-500.0,0.00011999,2]
[361652347,1747667431948,-500.0,0.00011999,2]
[361652348,1747667431958,-500.0,0.00011999,2]
[361652349,1747667431967,-500.0,0.00011999,2]
[361652350,1747667431976,-500.0,0.00011999,2]
[361652352,1747667431986,-500.0,0.00011999,2]
[361652353,1747667431995,-500.0,0.00011999,2]
[361652356,1747667432005,-41885.35971343,0.00012,2]
[361652551,1747667437380,-542.88552119,0.00012,2]
[361652552,1747667437424,-34496.54694894,0.00012,2]
[361652553,1747667437436,-172814.61765368,0.00012,2]
[361652554,1747667437507,-45114.74753509,0.00012,2]
[361652555,1747667437540,-787945.67570414,0.00012,2]
[361652557,1747667438115,-27544.0,0.00012,2]
[361652558,1747667438149,-488.66430191,0.00012,2]
[361652563,1747667439589,-507.92321947,0.00012,2]
[361652564,1747667439601,-251.9146798,0.00012,2]
[361652565,1747667439612,-3200.26080105,0.00012,2]
[361652566,1747667439773,-3331.64586612,0.00012,2]
[361652567,1747667439831,-13978.35453133,0.00012,2]
[361652568,1747667439888,-3854.07796343,0.00012,2]
[361652570,1747667440065,-32903.6269269,0.00012,2]
[361652597,1747667442552,-2511.87391084,0.00012,2]
[361652598,1747667442564,-303.28746566,0.00012,2]
[361652599,1747667442679,-487.10000003,0.00012,2]
[361652619,1747667445418,-121000.0,0.00012,2]
[361652782,1747667452868,-9466.40759161,0.00012,2]
[361652783,1747667452892,-3752.52611314,0.00012,2]
[361652784,1747667452915,-1094.06275098,0.00012,2]
[361652785,1747667452940,-957.56188565,0.00012,2]
[361652786,1747667452952,-5956.59899874,0.00012,2]
[361652787,1747667453122,-272.07166736,0.00012,2]
[361652789,1747667505544,1243.85,9.212e-05,2]
[361652793,1747667562625,3052.9308213,0.0002739,120]
[361652794,1747667580167,-196.51317791,0.00011219,2]
[361652795,1747667584114,-217.2626987,0.00011219,2]
[361652796,1747667587064,-313.29717659,0.00011219,2]
[361652797,1747667590749,-272.86357278,0.00011219,2]
[361652799,1747667591204,500.0,0.00025331,120]
[361652800,1747667591840,500.0,0.00027155,120]
[361652801,1747667593150,-277.95642722,0.00011219,2]
[361652802,1747667594899,-160.60790816,0.00011219,2]
[361652803,1747667597387,-200.0,0.00011219,2]
[361652804,1747667599512,-154.0330413,0.00011219,2]
[361652805,1747667599572,500.0,0.00025331,120]
[361652806,1747667599862,500.0,0.00027155,120]
[361652807,1747667600801,-192.6246387,0.00011219,2]
[361652808,1747667604438,556.306659,0.00025173,120]
[361652809,1747667604674,-152.06784727,0.00011219,2]
[361652810,1747667607029,-159.04601172,0.00011219,2]
[361652811,1747667609507,-188.88614101,0.00011219,2]
[361652813,1747667612969,-42.07135864,0.00011219,2]
[361652814,1747667612992,-142.6857036,0.00011418,2]
[361652816,1747667644669,413.86,0.00011,7]
[361652817,1747667665349,-233.50250077,0.0001139,2]
[361652818,1747667668969,1202.86,0.00027397,120]
[361652819,1747667670073,-162.02424579,0.0001139,2]
[361652821,1747667722452,706.0,0.00027,120]
[361652831,1747668033529,163.5,0.00011088,2]
[361652833,1747668048420,15292.13875,0.00042502,120]
[361652835,1747668132728,-152.0,0.00011253,2]
[361652836,1747668136354,-48.0,0.00011253,2]
[361652840,1747668191975,500.0,0.00025932,120]
[361652841,1747668192313,500.0,0.00027396,120]
[361652843,1747668202685,500.0,0.00025932,120]
[361652844,1747668203501,500.0,0.00027396,120]
[361652850,1747668308652,1811.04129481,0.00042614,90]
[361652851,1747668310956,518.73351729,0.00042614,30]
[361652852,1747668311158,3332.81165311,0.00042614,120]
[361652853,1747668312126,387.68866669,0.00042614,30]
[361652854,1747668312807,169.20980657,0.00042614,30]
[361652855,1747668313005,849.68506338,0.00042614,91]
[361652856,1747668314035,731.14308787,0.00042614,30]
[361652857,1747668315412,889.32890854,0.00042614,30]
[361652858,1747668315945,1000.0,0.00042614,30]
[361652859,1747668316470,1057.47876635,0.00042614,30]
[361652860,1747668317056,2858.43920337,0.00042614,120]
[361652861,1747668317612,524.67325033,0.00042614,30]
[361652862,1747668320002,2652.07158239,0.00042614,120]
[361652863,1747668320589,725.71091367,0.00042614,120]
[361652864,1747668321757,2035.09210585,0.00042614,30]
[361652865,1747668323278,750.46337557,0.00042614,30]
[361652866,1747668323449,728.04778772,0.00042614,120]
[361652867,1747668323620,4096.31462738,0.00042614,120]
[361652868,1747668326853,561.46820057,0.00027,120]
[361652869,1747668327926,200.0,0.00010915,2]
[361652870,1747668327977,306.41776797,0.00042614,30]
[361652871,1747668328797,241.22907431,0.00042614,30]
[361652872,1747668329036,500.0,0.00042614,30]
[361652873,1747668331823,2407.92515503,0.00042614,120]
[361652874,1747668331938,171.32353806,0.0002,120]
[361652875,1747668333741,237.28200527,0.0002739,120]
[361652876,1747668337559,304.1030772,0.00042614,120]
[361652877,1747668341077,480.40262285,0.00042614,120]
[361652878,1747668341435,298.05170659,0.00042614,120]
[361652879,1747668343417,859.72040589,0.00042614,120]
[361652880,1747668349901,871.10600555,0.00042614,30]
[361652881,1747668357925,879.4375193,0.00042614,30]
[361652882,1747668360682,1470.329744,0.00042614,90]
[361652883,1747668360990,168.75099208,0.0002739,120]
[361652884,1747668363193,155.49496819,0.00042614,120]
[361652885,1747668365406,845.46015278,0.00042614,120]
[361652886,1747668368475,947.27795933,0.00042614,30]
[361652887,1747668368610,225.34480494,0.00042614,120]
[361652888,1747668373402,1306.44231513,0.00042614,120]
[361652889,1747668373531,212.02045532,0.00042614,30]
[361652890,1747668374074,978.62274741,0.00042614,30]
[361652891,1747668374689,707.23468577,0.00042614,120]
[361652892,1747668376253,1127.19768372,0.00042614,120]
[361652893,1747668381030,699.58030574,0.00042614,120]
[361652894,1747668382503,2328.46678806,0.00042614,120]
[361652895,1747668384316,1030.27260495,0.00042614,30]
[361652896,1747668388080,598.27381695,0.00042614,120]
[361652897,1747668390213,357.68331303,0.00042614,30]
[361652898,1747668404631,662.55261252,0.00042635,30]
[361652899,1747668405138,213.91209371,0.00042635,30]
[361652900,1747668420623,788.17214801,0.00042635,120]
[361652901,1747668425777,729.30244098,0.00042635,30]
[361652908,1747668431874,530.9241598,0.0002301,120]
[361652909,1747668433515,1474.38966655,0.00042635,120]
[361652910,1747668443997,256.64810027,0.00042635,31]
[361652911,1747668450160,1030.111038,0.00042635,30]
[361652912,1747668450828,3225.5172152,0.00042635,120]
[361652913,1747668455241,3255.16589127,0.00042635,120]
[361652914,1747668459554,1000.78040896,0.00042635,120]
[361652915,1747668460531,174.88737616,0.00042635,120]
[361652916,1747668464911,439.63479249,0.00042635,120]
[361652917,1747668466237,465.65427105,0.00042635,120]
[361652918,1747668466924,778.50882555,0.00042635,30]
[361652919,1747668468701,967.61562187,0.00042635,30]
[361652920,1747668470636,833.51028611,0.00042635,30]
[361652921,1747668475858,165.28700617,0.00042635,30]
[361652922,1747668479426,697.06133052,0.00042635,30]
[361652923,1747668481103,364.52030963,0.00042635,30]
[361652924,1747668483199,654.14378354,0.00042635,120]
[361652925,1747668488485,1114.28027365,0.00042635,30]
[361652926,1747668489104,900.16944249,0.00042635,30]
[361652927,1747668489704,2092.13502903,0.00042635,30]
[361652928,1747668491401,665.89,0.0001088,2]
[361652929,1747668492531,23900.0,0.0001088,2]
[361652930,1747668498286,966.35092353,0.00042635,120]
[361652931,1747668507545,567.63429143,0.00042635,120]
[361652932,1747668509362,2143.48281971,0.00042635,120]
[361652933,1747668511691,429.82945159,0.00042635,30]
[361652934,1747668511952,933.99655217,0.00042635,120]
[361652935,1747668512001,1442.42059725,0.00042635,30]
[361652936,1747668512135,1869.86340965,0.00042635,120]
[361652937,1747668512258,937.39536695,0.00042635,120]
[361652938,1747668512564,661.34292261,0.00042635,30]
[361652939,1747668512737,2029.23761049,0.00042635,30]
[361652940,1747668512788,450.26419457,0.00042635,30]
[361652941,1747668512846,508.27435365,0.00042635,30]
[361652942,1747668512902,500.0,0.00042635,120]
[361652943,1747668512995,1349.20747231,0.00042635,30]
[361652944,1747668513120,969.13593611,0.00042635,120]
[361652946,1747668513295,1790.55169279,0.00042635,30]
[361652947,1747668513373,207.64517512,0.00042635,30]
[361652948,1747668513510,1109.10541045,0.00042635,30]
[361652949,1747668514057,1039.15729966,0.00042635,120]
[361652950,1747668514182,391.59290354,0.00042635,30]
[361652951,1747668514280,324.2992287,0.00042635,120]
[361652952,1747668514343,367.63339156,0.00042635,30]
[361652953,1747668514802,169.90483241,0.00042635,120]
[361652954,1747668514855,341.03519383,0.00042635,120]
[361652955,1747668514922,1489.54933153,0.00042635,30]
[361652956,1747668515112,2728.94362834,0.00042635,30]
[361652957,1747668515412,324.49385827,0.00042635,30]
[361652958,1747668515491,3037.70533993,0.0002739,120]
[361652959,1747668516596,1786.3623255,0.00025,120]
[361652960,1747668516733,756.0,0.00042635,120]
[361652961,1747668517254,179.22509615,0.00042635,120]
[361652962,1747668517321,1131.82682411,0.00042635,120]
[361652963,1747668517988,3228.67076479,0.00042635,120]
[361652964,1747668519625,569.27484522,0.00042635,120]
[361652965,1747668519817,2068.55105309,0.00042635,30]
[361652966,1747668519887,486.00477154,0.00042635,120]
[361652967,1747668520258,266.52598482,0.00042635,120]
[361652968,1747668521076,266.75588549,0.00042635,30]
[361652969,1747668521888,2611.99466602,0.00042635,120]
[361652970,1747668522314,434.67563269,0.00042635,30]
[361652972,1747668522680,2797.29879833,0.00042635,120]
[361652973,1747668523041,150.999999,0.00042635,30]
[361652974,1747668523449,160.69298007,0.00042635,120]
[361652976,1747668523568,3144.18106955,0.00042635,120]
[361652977,1747668525554,182.62860835,0.00042635,120]
[361652978,1747668525886,620.84341573,0.00042635,49]
[361652979,1747668525952,750.24262578,0.00042635,45]
[361652980,1747668526148,229.45623431,0.00042635,120]
[361652981,1747668526524,500.439999,0.00027,120]
[361652982,1747668526793,362000.0,0.00042635,60]
[361652983,1747668527572,1008.49087385,0.00042635,30]
[361652984,1747668527628,440.99502105,0.00042635,60]
[361652985,1747668527706,1576.3868023,0.00042635,120]
[361652986,1747668527789,228.7807677,0.00042635,30]
[361652987,1747668527860,3002.38569696,0.00042635,120]
[361652988,1747668527947,821.35172703,0.00027,120]
[361652989,1747668528597,2199.6036826,0.00042635,120]
[361652990,1747668528646,483.52010391,0.00027,120]
[361652991,1747668528694,1978.16999901,0.00042635,30]
[361652992,1747668547682,-227.20816999,0.00011315,2]
[361652993,1747668550260,-222.84953237,0.00011315,2]
[361652994,1747668552169,-192.73622149,0.00011315,2]
[361652996,1747668554094,-170.55339718,0.00011315,2]
[361652997,1747668557561,500.0,0.00042635,120]
[361652998,1747668557715,-151.53640827,0.00011315,2]
[361652999,1747668560543,-295.20140833,0.00011315,2]
[361653000,1747668561680,-245.71468405,0.00011315,2]
[361653001,1747668564145,62498.18606461,0.00042635,30]
[361653002,1747668567016,-178.69324188,0.00011372,2]
[361653003,1747668567455,500.0,0.00042635,120]
[361653004,1747668570074,-21.30675812,0.00011372,2]
[361653005,1747668582591,500.0,0.00042635,120]
[361653006,1747668583060,-245.14006397,0.00011343,2]
[361653007,1747668584544,-283.49547555,0.00011343,2]
[361653008,1747668585668,-1266.08596148,0.00011343,2]
[361653009,1747668585700,-163.91,0.000114,2]
[361653010,1747668585730,-250.0,0.00011426,2]
[361653011,1747668585760,-200.0,0.00011426,2]
[361653012,1747668585790,-1243.85,0.00011476,2]
[361653013,1747668585821,-188.9,0.00011678,2]
[361653014,1747668585853,-1200.0,0.00011799,2]
[361653015,1747668585884,-300.0,0.00011799,2]
[361653016,1747668585914,-574.28002672,0.000118,2]
[361653017,1747668585945,-1523.9187,0.000118,2]
[361653018,1747668585975,-503.6877,0.000118,2]
[361653019,1747668586005,-1000.0,0.000118,2]
[361653020,1747668586036,-4896.22190942,0.000118,2]
[361653021,1747668586066,-270.7647,0.000118,2]
[361653022,1747668586096,-161.27833798,0.000118,2]
[361653023,1747668586125,-2500.0,0.000118,2]
[361653024,1747668586154,-3757.1026644,0.00011811,2]
[361653025,1747668590794,500.0,0.00042635,120]
[361653026,1747668609218,500.0,0.00042635,120]
[361653027,1747668613254,735.8617,0.00042635,30]
[361653028,1747668616585,500.0,0.00042635,120]
[361653047,1747668632271,-3941.9665,0.000118,2]
[361653048,1747668632281,-574.28002672,0.000118,2]
[361653049,1747668632291,-250.0,0.00011806,2]
[361653050,1747668632302,-200.0,0.00011806,2]
[361653051,1747668632311,-300.0,0.0001181,2]
[361653052,1747668632321,-1139.11924497,0.00011811,2]
[361653053,1747668632330,-1000.0,0.00011819,2]
[361653054,1747668632340,-300.0,0.00011821,2]
[361653055,1747668632350,-1200.0,0.00011821,2]
[361653056,1747668632360,-3769.22004416,0.00011822,2]
[361653057,1747668632371,-1127.00186521,0.00011822,2]
[361653058,1747668632380,-2683.38773764,0.00011833,2]
[361653059,1747668632391,-342.63599996,0.00011833,2]
[361653060,1747668632420,-616.76388241,0.00011833,2]
[361653061,1747668632450,-1253.43428936,0.00011833,2]
[361653062,1747668632459,-150.0,0.00011842,2]
[361653063,1747668632469,-612.87390948,0.00011844,2]
[361653064,1747668632481,-4283.34799989,0.00011844,2]
[361653065,1747668632491,-1269.08,0.00011853,2]
[361653066,1747668632500,-164.88,0.00011853,2]
[361653067,1747668632509,-250.0,0.00011853,2]
[361653068,1747668632520,-6539.69200011,0.00011853,2]
[361653069,1747668632531,-3693.33780679,0.00011853,2]
[361653072,1747668637638,-247.04209957,0.00011852,2]
[361653074,1747668637648,-221.53363716,0.00011852,2]
[361653075,1747668637659,-5468.9201931,0.00011853,2]
[361653076,1747668637671,-4896.22190937,0.00011856,2]
[361653078,1747668637681,-448.0,0.00011863,2]
[361653080,1747668637691,-4896.22190937,0.00011867,2]
[361653082,1747668637701,-4896.22190937,0.00011878,2]
[361653083,1747668637710,-4896.22190937,0.00011889,2]
[361653085,1747668637720,-409.9,0.00011894,2]
[361653086,1747668637731,-537.0,0.00011896,2]
[361653087,1747668637740,-162.5905219,0.00011899,2]
[361653088,1747668637749,-500.0,0.000119,2]
[361653089,1747668637759,-185.67036517,0.000119,2]
[361653090,1747668637769,-35935.449,0.000119,2]
[361653091,1747668637778,-200089.9550483,0.000119,2]
[361653092,1747668637789,-4642.84763226,0.000119,2]
[361653093,1747668637866,-2143.39581944,0.000119,2]
[361653094,1747668637876,-1000.0,0.000119,2]
[361653095,1747668637887,-5000.0,0.000119,2]
[361653096,1747668637898,-152.10326856,0.000119,2]
[361653097,1747668637908,-151.49834844,0.000119,2]
[361653098,1747668637918,-333.57183629,0.000119,2]
[361653099,1747668637927,-4896.22190937,0.000119,2]
[361653100,1747668637937,-795.3254025,0.000119,2]
[361653101,1747668637946,-177.90995994,0.000119,2]
[361653102,1747668637956,-2000.0,0.00011904,2]
[361653103,1747668637966,-200.0,0.00011904,2]
[361653104,1747668637975,-404.87,0.00011929,2]
[361653105,1747668637986,-969.0,0.00011968,2]
[361653106,1747668637995,-500.0,0.00011973,2]
[361653107,1747668638005,-500.0,0.00011973,2]
[361653108,1747668638015,-500.0,0.00011973,2]
[361653109,1747668638025,-500.0,0.00011973,2]
[361653110,1747668638035,-500.0,0.00011973,2]
[361653111,1747668638045,-500.0,0.00011973,2]
[361653113,1747668638054,-500.0,0.00011973,2]
[361653115,1747668638063,-618.30173804,0.00011973,2]
[361653117,1747668638074,-500.0,0.00011973,2]
[361653118,1747668638083,-500.0,0.00011973,2]
[361653119,1747668638092,-3669.829,0.0001198,2]
[361653120,1747668638102,-170.875,0.0001198,2]
[361653121,1747668638111,-350.0,0.00011988,2]
[361653122,1747668638121,-681.0,0.00011999,2]
[361653123,1747668638130,-1000.0,0.00011999,2]
[361653124,1747668638139,-108159.04218159,0.00012,2]
[361653125,1747668638149,-69087.05553583,0.00012,2]
[361653127,1747668638235,-2453.50000001,0.00012,2]
[361653128,1747668638256,-7475.3396246,0.00012,2]
[361653139,1747668639785,-10454.99799999,0.00012,2]
[361653140,1747668639910,-2031.02866824,0.00012,2]
[361653142,1747668640249,-106.6047129,0.00012,2]
[361653145,1747668640262,-388.1163482,0.00012,2]
[361653151,1747668640315,-500.0,0.00011852,2]
[361653153,1747668640325,-12000.0000001,0.00012,2]
[361653190,1747668642914,-316.0555,0.000118,2]
[361653191,1747668642924,-500.0,0.00011852,2]
[361653192,1747668642934,-98.98851244,0.00011852,2]
[361653193,1747668642945,-401.01148756,0.00011852,2]
[361653194,1747668642955,-500.0,0.00011852,2]
[361653195,1747668642964,-500.0,0.00011852,2]
[361653196,1747668642973,-500.0,0.00011852,2]
[361653197,1747668642984,-238.24824108,0.00011852,2]
[361653198,1747668643001,-261.75175892,0.00011852,2]
[361653199,1747668643011,-216.60782616,0.0001199,2]
[361653200,1747668643020,-572.24123653,0.00012,2]
[361653205,1747668643129,-669.80338108,0.00012,2]
[361653208,1747668643143,-1177.25650396,0.00012,2]
[361653256,1747668646249,-348.1533,0.00012,2]
[361653257,1747668646261,-3222.26959378,0.00012,2]
[361653258,1747668646273,-1125.7880024,0.00012,2]
[361653259,1747668646284,-299.99,0.00012,2]
[361653261,1747668646296,-5891.28488469,0.00012,2]
[361653262,1747668646338,-52277.3861386,0.00012,2]
[361653264,1747668646405,-380.43962331,0.00012,2]
[361653265,1747668646417,-4899.75366782,0.00012,2]
[361653266,1747668646428,-2692.0000004,0.00012,2]
[361653267,1747668646445,-39523.38774185,0.00012,2]
[361653268,1747668646457,-487.73818594,0.00012,2]
[361653269,1747668646468,-40823.83795,0.00012,2]
[361653270,1747668646494,-13341.04330391,0.00012,2]
[361653271,1747668646505,-119610.324,0.00012,2]
[361653273,1747668655414,500.0,0.00042635,120]
[361653274,1747668657155,168.98,8.727e-05,2]
[361653275,1747668664050,500.0,0.00042635,120]
[361653276,1747668674472,500.0,0.00042635,120]
[361653277,1747668697178,500.0,0.00042635,120]
[361653278,1747668704641,500.0,0.00042635,120]
[361653279,1747668714302,500.0,0.00042635,120]
[361653280,1747668734857,500.0,0.00042635,120]
[361653288,1747668770624,300.0,0.000111,4]
[361653289,1747668772712,700.0,0.000112,4]
[361653290,1747668795120,326.674809,0.00024999,120]
[361653291,1747668801391,339.894868,0.00024999,120]
[361653294,1747668904866,387.14,0.00042635,120]
[361653296,1747668935572,1034.14,0.00010917,2]
[361653297,1747669019852,107498.4039307,0.00042635,120]
[361653299,1747669048809,1168.34,8.903e-05,2]
[361653300,1747669049028,1168.34,0.00011167,2]
[361653303,1747669073916,178.5,0.00010821,2]
[361653304,1747669077875,164.87,0.00010821,2]
[361653307,1747669120825,250.0,0.00010836,2]
[361653310,1747669165122,26752.338155,0.00042635,120]
[361653312,1747669193190,-194.37,0.00011292,2]
[361653314,1747669194149,2553.67,0.00025,60]
[361653315,1747669211479,200.0,0.00010284,2]
[361653317,1747669224238,1220.0,0.00042635,30]
[361653319,1747669261600,155.0,0.00025,60]
[361653320,1747669272484,163.44,0.00011123,2]
[361653322,1747669302388,500.0,0.00042667,120]
[361653323,1747669302580,474.472591,0.00042667,30]
[361653324,1747669311319,500.0,0.00042667,120]
[361653325,1747669318345,1999.989,0.00027397,120]
[361653326,1747669320880,500.0,0.00042667,120]
[361653328,1747669460344,2000.0,0.00042667,30]
[361653329,1747669461112,1329.18,0.00010807,2]
[361653330,1747669499027,2000.0,0.00042667,30]
[361653331,1747669502236,672.66,0.00010804,2]
[361653332,1747669511416,200.0,0.00010284,2]
[361653333,1747669542521,164.63034405,0.00011196,2]
[361653335,1747669574250,2000.0,0.00042667,30]
[361653336,1747669593712,400.0,0.00014267,30]
[361653337,1747669597322,152.13,0.000108,2]
[361653338,1747669609545,2000.0,0.00042667,30]
[361653374,1747669644913,300.0,0.000111,4]
[361653375,1747669647009,700.0,0.000112,4]
[361653376,1747669654303,2000.0,0.00042667,120]
[361653377,1747669657722,55743.08,0.00010794,2]
[361653379,1747669688224,-152.92103485,0.00011294,2]
[361653380,1747669690314,-47.07896515,0.00011294,2]
[361653381,1747669690339,-128.92766333,0.00011295,2]
[361653383,1747669741416,5468.92,0.00010757,2]
[361653384,1747669752500,1000.0,0.000108,2]
[361653385,1747669762335,901.85,0.00010768,2]